[Event "Czech Open-GM 2022"]
[Site "Pardubice"]
[Date "2022.07.27"]
[Round "6.24"]
[White "Lalic, Bogdan"]
[Black "Paseka, Matyas"]
[Result "1-0"]
[ECO "E62"]
[WhiteElo "2412"]
[BlackElo "2218"]
[Annotator "TA"]
[PlyCount "115"]
[EventDate "2022.07.22"]
[EventType "swiss"]
[EventCountry "CZE"]
[SourceTitle "playchess.com"]
[Source "ChessBase"]
[SourceQuality "1"]
[TimeControl "40/5400+30:1800+30"]

{[%evp 28,115,70,76,78,81,109,117,170,175,175,156,185,152,209,211,205,194,233,165,163,163,153,153,154,142,155,156,155,138,168,155,208,218,221,235,233,221,235,220,217,237,223,215,238,225,318,314,306,251,327,319,374,366,602,602,602,597,594,588,575,568,557,481,566,526,984,868,891,933,971,1017,960,949,1076,998,29974,29976,29976,29977,29975,29977,29981,29982,29985,29986,29986,29987,29988,29988]} 1. d4 {[%emt 0:03:17]} Nf6 {[%emt 0:00:08]} 2. c4 {[%emt 0:00:14]} g6 {[%emt 0:00:07]} 3. Nf3 {[%emt 0:00:06]} Bg7 {[%emt 0:00:08]} 4. g3 {[%emt 0:00:06]} O-O {[%emt 0:00:12]} 5. Bg2 {[%emt 0:00:09]} d6 {[%emt 0:00:08]} 6. O-O {[%emt 0:00:08]} Nc6 {[%emt 0:00:07]} 7. Nc3 {[%emt 0:00:09]} Bf5 {[%emt 0:00:09]} 8. d5 {[%emt 0:00:15]} Na5 {[%emt 0:00:07]} 9. Nd2 {[%emt 0:00:10]} c5 {[%emt 0:00:10]} 10. e4 {[%emt 0:00:14]} Bd7 {[%emt 0:00:06]} 11. Qc2 {[%emt 0:00:17]} a6 {[%emt 0:00:15]} 12. b3 {[%emt 0:00:13]} b5 {[%emt 0:00:16]} 13. Bb2 {[%emt 0:00:11]} Rb8 {[%emt 0:00:10]} 14. Nd1 {[%emt 0:00:17][%cal Bc3d1,Bd1b2,Bb2d3][%mdl 32]} bxc4 {[%emt 0:09:17]} 15. bxc4 {[%emt 0:00:08]} Rb4 {[%emt 0:00:19] E66: King's Indian: Fianchetto: 6...c5 7 0-0 Nc6 8 d5.} 16. Bc3 {[%emt 0:00:55]} Ba4 {[%emt 0:03:10] [#]} 17. Qc1 $146 {[%emt 0:03:18]} ({Predecessor:} 17. Qd3 Ng4 18. Bxg7 Kxg7 19. Qc3+ Kg8 20. h3 Bxd1 21. Rfxd1 Ne5 22. Bf1 Qc7 23. a3 {1-0 (49) Ammann,P (2179)-Kais,E (2013) Baden 2017}) 17... Qb6 {[%emt 0:11:40]} (17... Bxd1 $16 18. Bxb4 (18. Qxd1 Nd7 $16) (18. Rxd1 Ra4 $16) 18... cxb4) 18. Nb2 {[%emt 0:10:47]} Bd7 {[%emt 0:11:36][%cal Of6e4]} 19. Bxb4 {[%emt 0:24:46]} cxb4 {[%emt 0:00:08]} 20. Nd3 {[%emt 0:02:44]} Rc8 {[%emt 0:06:55]} (20... Bh6 $16 21. Qb2 Ng4) 21. Rb1 $18 {[%emt 0:02:45]} Qd4 {[%emt 0:02:49]} 22. Nxb4 {[%emt 0:00:10]} Nxc4 {[%emt 0:00:17]} 23. Nb3 {[%emt 0:04:11]} ({Don't play} 23. Nc6 Bxc6 24. Qxc4 Qxc4 25. Nxc4 Bb5) 23... Qb6 {[%emt 0:02:25]} 24. Nc6 {[%emt 0:00:10]} Bxc6 {[%emt 0:01:06]} 25. dxc6 {[%emt 0:00:08]} ({Don't do} 25. Qxc4 Bd7 26. Qd4 Qxd4 27. Nxd4 Nxd5 $16) 25... Ne5 {[%emt 0:01:30]} 26. Qd2 {[%emt 0:03:34] Black must now prevent Nd4.} Nxc6 {[%emt 0:03:14]} 27. Rfc1 $36 {[%emt 0:00:31][%mdl 2048] White has strong initiative.} Rb8 {[%emt 0:05:56]} 28. h3 {[%emt 0:05:42] Prevents Ng4.} h5 {[%emt 0:06:47]} 29. Qe2 {[%emt 0:08:39]} Nd7 {[%emt 0:12:26]} (29... Ne5 $16 30. Nd2 Qa7 31. Rxb8+ Qxb8 32. Qxa6 Qb2 33. Qc8+ Bf8) 30. Nd2 {[%emt 0:04:57]} Nd4 {[%emt 0:00:09]} 31. Qc4 {[%emt 0:01:33]} Qa7 {[%emt 0:03:10]} 32. Rxb8+ {[%emt 0:00:16]} Qxb8 {[%emt 0:01:01]} 33. Qc8+ {[%emt 0:00:19]} ({Resist} 33. Qxa6 $6 Nc5 34. Qc4 Qb2 $16) 33... Qxc8 {[%emt 0:00:11]} 34. Rxc8+ {[%emt 0:00:07]} Bf8 {[%emt 0:00:17]} 35. Bf1 {[%emt 0:01:43]} Nc5 {[%emt 0:01:51]} 36. e5 {[%emt 0:00:48]} Nde6 {[%emt 0:03:38]} (36... Kg7 {was called for.} 37. exd6 exd6) 37. exd6 {[%emt 0:00:10]} exd6 {[%emt 0:00:04]} 38. Nb3 {[%emt 0:03:28]} Nxb3 {[%emt 0:04:49]} 39. axb3 {[%emt 0:00:06][%mdl 4096] Endgame KRB-KBN} a5 {[%emt 0:00:10]} 40. Bc4 {[%emt 0:00:56] [#] Strongly threatening Bxe6.} Kg7 $2 {[%emt 0:03:48]} (40... Nc5 41. Ra8 h4 42. gxh4 Ne6 43. Rxa5 Nf4) 41. Bxe6 {[%emt 0:30:40]} fxe6 {[%emt 0:30:06] KR-KB} 42. Ra8 {[%emt 0:00:05]} d5 {[%emt 0:00:17]} 43. Rxa5 {[%emt 0:00:03]} Kf6 {[%emt 0:00:24]} 44. Ra8 {[%emt 0:01:16]} Be7 {[%emt 0:01:04]} 45. Rb8 {[%emt 0:00:54]} Ke5 {[%emt 0:00:36]} 46. Kf1 {[%emt 0:01:28]} Kd4 {[%emt 0:00:31]} 47. Rb6 {[%emt 0:00:39]} Ke5 {[%emt 0:01:51]} 48. b4 {[%emt 0:00:16]} d4 {[%emt 0:01:17]} 49. Ke2 {[%emt 0:01:35]} Kd5 {[%emt 0:00:35]} 50. Kd3 {[%emt 0:00:22]} e5 {[%emt 0:00:30]} 51. Rb5+ {[%emt 0:00:38]} Kc6 {[%emt 0:01:28]} 52. Rxe5 {[%emt 0:00:06] White mates.} Bxb4 {[%emt 0:00:03]} 53. Re6+ {[%emt 0:00:09]} Kd5 {[%emt 0:00:10]} 54. Rxg6 {[%emt 0:00:05]} Be1 {[%emt 0:00:27]} 55. f4 {[%emt 0:00:32]} Bf2 {[%emt 0:00:18]} 56. g4 {[%emt 0:00:19]} hxg4 {[%emt 0:00:24]} 57. hxg4 {[%emt 0:00:04]} Be3 {[%emt 0:00:41]} 58. Rf6 {[%emt 0:00:10] Black did not feel at home in the position after the opening.  Weighted Error Value: White=0.07 (flawless) /Black=0.42} 1-0

[Event "Czech Open-GM 2022"]
[Site "Pardubice"]
[Date "2022.07.27"]
[Round "6.26"]
[White "Keller, Peter"]
[Black "Koziorowicz, Michal"]
[Result "0-1"]
[ECO "C18"]
[WhiteElo "2377"]
[BlackElo "2231"]
[Annotator "TA"]
[PlyCount "52"]
[EventDate "2022.07.22"]
[EventType "swiss"]
[EventCountry "CZE"]
[SourceTitle "playchess.com"]
[Source "ChessBase"]
[SourceQuality "1"]
[TimeControl "40/5400+30:1800+30"]

{[%evp 13,52,0,9,-38,65,57,59,54,59,56,57,40,72,65,62,0,0,0,11,8,17,-12,0,-37,-17,-26,205,202,184,-70,-69,-267,-66,-56,-58,-72,-60,-745,-744,-29998,-29999]} 1. e4 {[%emt 0:03:01]} e6 {[%emt 0:00:17]} 2. d4 {[%emt 0:00:07]} d5 {[%emt 0:00:08]} 3. Nc3 {[%emt 0:00:04]} Bb4 {[%emt 0:00:12]} 4. e5 {[%emt 0:00:21]} c5 {[%emt 0:00:12]} 5. a3 {[%emt 0:00:06]} Bxc3+ {[%emt 0:00:11]} 6. bxc3 {[%emt 0:00:07]} Ne7 {[%emt 0:00:13]} 7. Qg4 {[%emt 0:00:38]} cxd4 {[%emt 0:00:15]} 8. Bd3 {[%emt 0:10:38] C18: French: 3 Nc3 Bb4: Main line: 7 h4 and 7 Qg4.} (8. Qxg7 Rg8 9. Qxh7 Qc7 $14) (8. cxd4 $11 Qc7 9. Ra2 (9. Qxg7 $2 Qc3+ 10. Ke2 Rg8 $19) (9. Bb5+ Bd7 $17)) 8... Nbc6 {[%emt 0:09:50]} (8... Qa5 $15 9. Ne2 Nd7) 9. cxd4 $14 {[%emt 0:05:36]} O-O {[%emt 0:05:17]} 10. Nf3 {[%emt 0:03:44][%cal Od3h7] White is slightly better.} f5 {[%emt 0:03:57]} 11. exf6 {[%emt 0:01:40]} Rxf6 {[%emt 0:00:05][%cal Oe6e5]} 12. Ne5 {[%emt 0:28:23]} (12. Bxh7+ $2 Kxh7 13. Bg5 Rf8 14. Bxe7 Qxe7 $19) 12... Qa5+ {[%emt 0:10:11]} 13. Bd2 $1 {[%emt 0:00:46]} Qa4 {[%emt 0:01:10] aiming for ...Nxe5.} 14. Nxc6 {[%emt 0:12:52] [#]} (14. Bxh7+ $2 Kxh7 15. Bg5 Rf5 $19) (14. Qh5 $14 Nf5 15. O-O (15. Qe8+ $2 Rf8 $19)) 14... Nxc6 $146 {[%emt 0:01:23]} ({Predecessor:} 14... Qxc6 15. Qe2 Nf5 16. c3 Bd7 17. O-O Rc8 18. a4 Be8 19. Rfb1 Bg6 20. Bb5 Qd6 {1-0 (49) Diepeveen,V (2300)-Michielsen,J Dieren 2001}) 15. c3 $36 {[%emt 0:00:20][%mdl 2048] Qh5 is the strong threat. Black is under pressure.} h6 {[%emt 0:09:39]} 16. Qe2 {[%emt 0:01:43] Inhibits Ne5.} Bd7 {[%emt 0:10:42]} 17. h4 {[%emt 0:04:21]} Raf8 {[%emt 0:02:40]} 18. f4 {[%emt 0:00:21]} e5 {[%emt 0:09:38]} 19. fxe5 {[%emt 0:16:01] [#]} (19. dxe5 {is interesting.} Rxf4 20. Bxf4 Qxf4 21. Rf1) 19... Nxd4 $2 {[%emt 0:01:17]} 20. cxd4 $18 {[%emt 0:07:50]} Qxd4 {[%emt 0:00:10]} 21. exf6 $2 {[%emt 0:00:33]} (21. Rd1 $1 $18 R6f7 22. Qe3) 21... Qxa1+ $15 {[%emt 0:00:46]} 22. Qd1 $2 {[%emt 0:00:01] [#]} (22. Kf2 $1 $15 Qxh1 23. Kg3) 22... Re8+ $2 {[%emt 0:00:50]} (22... Qxf6 23. Qb3 $17 (23. Qe2 $2 Qa1+ 24. Qd1 Qe5+ 25. Be3 Qxe3+ 26. Be2 Rc8 $19)) (22... Qe5+ $1 $19 23. Be2 Rxf6) 23. Kf2 $1 {[%emt 0:01:53]} ({Don't blunder} 23. Be2 $2 {[#]} Rxe2+ $1 {[%mdl 512]} 24. Kxe2 Bg4+ 25. Kf2 Bxd1 $19) 23... Qd4+ {[%emt 0:00:39]} ({But not} 23... Qxf6+ 24. Qf3 Qb2 25. Rd1 $11 (25. Qxd5+ Be6 $17)) 24. Kg3 {[%emt 0:00:14][%cal Of6f7] Threatens to win with f7+!} Qxd3+ {[%emt 0:00:07]} 25. Kh2 $2 {[%emt 0:00:02][%mdl 8192]} (25. Qf3 $15 Qg6+ 26. Kh2) 25... Re2 $19 {[%emt 0:01:16] ( -> ...Qh3+)} 26. Bf4 {[%emt 0:00:46]} Qh3+ {[%emt 0:00:06] Weighted Error Value: White=1.00/Black=0.59} 0-1

[Event "Czech Open-GM 2022"]
[Site "Pardubice"]
[Date "2022.07.27"]
[Round "6.27"]
[White "Kulon, Klaudia"]
[Black "Butkiewicz, Lukasz"]
[Result "1/2-1/2"]
[ECO "A05"]
[WhiteElo "2286"]
[BlackElo "2370"]
[Annotator "TA"]
[PlyCount "31"]
[EventDate "2022.07.22"]
[EventType "swiss"]
[EventCountry "CZE"]
[SourceTitle "playchess.com"]
[Source "ChessBase"]
[SourceQuality "1"]
[TimeControl "40/5400+30:1800+30"]

{[%evp 14,15,-1,-28]} 1. Nf3 {[%emt 0:00:03]} Nf6 {[%emt 0:00:09]} 2. g3 {[%emt 0:00:04]} e6 {[%emt 0:00:09]} 3. Bg2 {[%emt 0:00:04]} d5 {[%emt 0:00:07]} 4. O-O {[%emt 0:00:07]} Be7 {[%emt 0:00:07]} 5. b3 {[%emt 0:00:11]} c5 {[%emt 0:00:09]} 6. Bb2 {[%emt 0:00:10]} Nc6 {[%emt 0:00:08]} 7. d3 {[%emt 0:00:11]} O-O {[%emt 0:00:07]} 8. Nbd2 {[%emt 0:00:10] [#]} {Predecessor:} b6 $146 {A06: Réti Opening: 1 Nf3 d5.} 9. e4 Bb7 10. e5 Nd7 11. Re1 b5 12. h4 Nb6 13. h5 h6 14. Nf1 a5 15. N1h2 a4 16. Rb1 {1-0 (60) Nakamura,H (2750)-Matlakov,M (2674) Chess.com INT 2022} 1/2-1/2

[Event "Czech Open-GM 2022"]
[Site "Pardubice"]
[Date "2022.07.27"]
[Round "6.28"]
[White "Hrbek, Stepan"]
[Black "Malek, Daniel"]
[Result "1/2-1/2"]
[ECO "D41"]
[WhiteElo "2272"]
[BlackElo "2355"]
[Annotator "TA"]
[PlyCount "87"]
[EventDate "2022.07.22"]
[EventType "swiss"]
[EventCountry "CZE"]
[SourceTitle "playchess.com"]
[Source "ChessBase"]
[SourceQuality "1"]
[TimeControl "40/5400+30:1800+30"]

{[%evp 25,87,25,32,0,0,0,16,0,2,0,6,0,0,0,41,-7,-6,-6,-8,-8,-10,-12,0,0,0,0,0,0,0,0,0,0,0,0,0,0,0,0,0,0,0,0,0,0,0,0,0,0,0,0,0,0,0,0,0,0,0,0,0,0,0,0,0,0]} 1. d4 {[%emt 0:00:04]} Nf6 {[%emt 0:00:05]} 2. c4 {[%emt 0:00:08]} e6 {[%emt 0:00:03]} 3. Nf3 {[%emt 0:00:09]} d5 {[%emt 0:00:04]} 4. Nc3 {[%emt 0:00:10]} c5 {[%emt 0:00:11]} 5. cxd5 {[%emt 0:00:19]} Nxd5 {[%emt 0:00:07]} 6. e4 {[%emt 0:00:47]} Nxc3 {[%emt 0:00:05]} 7. bxc3 {[%emt 0:00:07]} cxd4 {[%emt 0:00:04]} 8. cxd4 {[%emt 0:00:10]} Bb4+ {[%emt 0:00:05]} 9. Bd2 {[%emt 0:00:07]} Bxd2+ {[%emt 0:00:05]} 10. Qxd2 {[%emt 0:00:10]} O-O {[%emt 0:00:08]} 11. Bc4 {[%emt 0:00:36]} Nd7 {[%emt 0:00:10]} 12. O-O {[%emt 0:00:11]} b6 {[%emt 0:00:06]} 13. Rfe1 {[%emt 0:02:42]} Bb7 {[%emt 0:00:07]} 14. Bb3 {[%emt 0:00:45] D41: Queen's Gambit Declined: Semi-Tarrasch with 5 cxd5.} Rc8 {[%emt 0:02:37]} 15. Rad1 {[%emt 0:00:39]} h6 {[%emt 0:00:29]} 16. Qf4 {[%emt 0:21:28]} Qc7 {[%emt 0:20:21]} 17. Qxc7 {[%emt 0:03:58]} Rxc7 {[%emt 0:00:07]} 18. d5 {[%emt 0:00:14]} Nc5 {[%emt 0:02:41] [#]} 19. d6 $146 {[%emt 0:04:52]} ({Predecessor:} 19. Bc4 Nxe4 20. Rxe4 exd5 21. Bxd5 Rd8 22. Bxf7+ Kxf7 23. Rf4+ Kg6 24. Re1 Kh7 25. h4 {1-0 (66) Rudd,J (2275)-Taylor,A (2402) Torquay 2019}) 19... Rd7 {[%emt 0:01:04]} 20. e5 {[%emt 0:11:20]} (20. Ne5 $1 $14 {should be considered.} Rdd8 21. f3) 20... f6 $11 {[%emt 0:02:46] White must now prevent ...Bxf3. The position is equal.} 21. Nd4 {[%emt 0:04:23]} Nxb3 {[%emt 0:04:07]} 22. axb3 {[%emt 0:04:59]} fxe5 $1 {[%emt 0:00:19]} 23. Nxe6 {[%emt 0:01:05]} Rf6 {[%emt 0:04:40]} 24. Rxe5 {[%emt 0:00:47]} Kf7 {[%emt 0:01:15]} 25. Nd8+ {[%emt 0:15:27]} Rxd8 {[%emt 0:00:35]} 26. Re7+ {[%emt 0:00:05]} Kg6 {[%emt 0:00:35]} 27. Rxb7 {[%emt 0:00:05]} Rdxd6 {[%emt 0:01:43]} 28. Rxd6 {[%emt 0:00:15]} Rxd6 {[%emt 0:00:06][%cal Rd6d1][%mdl 4096] [#] Endgame KR-KR} 29. Kf1 {[%emt 0:00:02]} Rd3 {[%emt 0:05:24]} 30. Rxa7 {[%emt 0:01:08]} Rxb3 {[%emt 0:00:07]} 31. g4 {[%emt 0:03:10][%cal Bg2g4,Bg4h5][%mdl 32]} h5 {[%emt 0:04:12]} 32. gxh5+ {[%emt 0:00:21]} Kh6 {[%emt 0:00:05]} 33. Kg2 {[%emt 0:01:28]} Rb5 {[%emt 0:00:08]} 34. Rb7 {[%emt 0:00:10]} Rg5+ {[%emt 0:00:06]} 35. Kf3 {[%emt 0:00:20]} b5 {[%emt 0:01:19]} 36. h4 {[%emt 0:00:12]} Rxh5 {[%emt 0:00:09]} 37. Kg4 {[%emt 0:00:08]} Rc5 {[%emt 0:00:25]} 38. f4 {[%emt 0:00:22]} (38. Rb8 $5 {[%cal Rb8h8]}) 38... g6 {[%emt 0:00:11]} 39. Rb6 {[%emt 0:01:15]} Kg7 {[%emt 0:00:06]} 40. Rb7+ {[%emt 0:00:06]} Kf6 {[%emt 0:00:05]} 41. Rb6+ {[%emt 0:30:19]} Kf7 {[%emt 0:30:06]} 42. Rb7+ {[%emt 0:00:08]} Kf6 {[%emt 0:00:05]} 43. Rb6+ {[%emt 0:00:08]} Kf7 {[%emt 0:00:05]} 44. Rb7+ {[%emt 0:00:05] An even fight not without its subleties.  Weighted Error Value: White=0.04 (flawless) /Black=0.02 (flawless)} 1/2-1/2

[Event "Czech Open-GM 2022"]
[Site "Pardubice"]
[Date "2022.07.27"]
[Round "6.29"]
[White "Rabatin, Jakub"]
[Black "Gombocz, Ferenc Jr."]
[Result "0-1"]
[ECO "A06"]
[WhiteElo "2349"]
[BlackElo "2229"]
[Annotator "TA"]
[PlyCount "112"]
[EventDate "2022.07.22"]
[EventType "swiss"]
[EventCountry "CZE"]
[SourceTitle "playchess.com"]
[Source "ChessBase"]
[SourceQuality "1"]
[TimeControl "40/5400+30:1800+30"]

{[%evp 17,112,7,8,19,11,3,19,16,16,5,4,2,12,-4,0,-10,0,0,0,0,0,0,0,11,22,0,41,41,50,53,54,36,59,0,20,0,0,0,0,0,0,0,0,0,0,0,12,-87,-103,-93,-81,-80,-40,-46,-39,-37,-39,-211,-222,-212,-218,-214,-227,-283,-281,-270,-295,-273,-229,-233,-232,-224,-227,-224,-216,-206,-223,-320,-319,-312,-308,-275,-123,-123,-125,-124,-123,-168,-137,-131,-129,-208,-208,-246,-239,-1013,-1013]} 1. Nf3 {[%emt 0:00:03]} d5 {[%emt 0:00:07]} 2. g3 {[%emt 0:00:04]} Bg4 {[%emt 0:00:32]} 3. Bg2 {[%emt 0:00:06]} Nd7 {[%emt 0:00:26]} 4. c4 {[%emt 0:00:06]} e6 {[%emt 0:02:05]} 5. cxd5 {[%emt 0:00:11]} exd5 {[%emt 0:00:10]} 6. O-O {[%emt 0:00:43]} Ngf6 {[%emt 0:05:57]} 7. d3 {[%emt 0:00:13]} c6 {[%emt 0:01:23]} 8. Nc3 {[%emt 0:00:07]} Bc5 {[%emt 0:00:42]} 9. Qb3 {[%emt 0:03:14]} Bb6 {[%emt 0:02:53]} 10. Na4 {[%emt 0:01:49] A11: English Opening: 1...c6.} O-O {[%emt 0:09:30]} 11. Nxb6 {[%emt 0:02:26]} Qxb6 {[%emt 0:01:22] [#]} 12. Qxb6 $146 {[%emt 0:04:01] The position is equal.} ({Predecessor:} 12. Qc2 Rfe8 13. h3 Bh5 14. g4 Bg6 15. Nh4 Nf8 16. Kh1 Ne6 17. e3 h5 18. g5 Nxg5 {1-0 (65) Oparin,G (2616)-Shirov,A (2673) Moscow 2016}) 12... axb6 {[%emt 0:03:46]} 13. h3 {[%emt 0:00:19]} Bxf3 {[%emt 0:08:10]} 14. Bxf3 {[%emt 0:00:07]} Nc5 {[%emt 0:00:47]} 15. Bf4 {[%emt 0:36:21]} Ra6 {[%emt 0:08:00]} 16. Bg2 {[%emt 0:03:18]} Rfa8 {[%emt 0:22:25][%cal Oc5b3]} 17. a3 $1 {[%emt 0:00:24]} h6 {[%emt 0:00:51]} 18. Rfe1 {[%emt 0:04:28]} Re8 {[%emt 0:09:33]} 19. Rac1 {[%emt 0:10:08]} Nb3 {[%emt 0:05:34]} 20. Rc3 {[%emt 0:05:05]} Nd4 {[%emt 0:00:18] Pair of Knights!} 21. Kf1 {[%emt 0:07:26]} Nd7 {[%emt 0:01:32][%cal Bf6d7,Bd7c5,Bc5b3][%mdl 32]} 22. e4 {[%emt 0:04:03]} Nb5 {[%emt 0:08:26]} 23. Rcc1 {[%emt 0:01:33]} d4 {[%emt 0:00:06]} 24. Rcd1 {[%emt 0:02:53]} (24. Ke2 {feels hotter.} Nc5 25. g4 Nb3 26. Rc2) 24... Nc5 {[%emt 0:03:34]} 25. Bc1 {[%emt 0:03:27]} (25. g4 $14) 25... Nb3 {[%emt 0:01:05]} 26. f4 {[%emt 0:01:25]} Nc7 {[%emt 0:00:13]} 27. e5 {[%emt 0:03:36]} Ra5 {[%emt 0:00:21]} 28. Bd2 {[%emt 0:05:16]} Rc5 {[%emt 0:00:27]} 29. Bb4 {[%emt 0:01:09]} Rc2 {[%emt 0:00:05]} 30. Re2 {[%emt 0:00:46]} Rxe2 {[%emt 0:00:20]} 31. Kxe2 {[%emt 0:00:01]} f6 {[%emt 0:00:17]} 32. Bd6 {[%emt 0:01:04]} (32. Kf1 $11 {remains equal.}) 32... Nb5 $17 {[%emt 0:00:09]} 33. Kf2 {[%emt 0:00:32]} Nxd6 {[%emt 0:00:08]} 34. exd6 {[%emt 0:00:03][%mdl 4096] Endgame KRB-KRN} Rd8 {[%emt 0:00:13]} 35. Re1 {[%emt 0:00:46]} Rxd6 {[%emt 0:00:24]} 36. Re7 {[%emt 0:00:31]} Nc5 {[%emt 0:00:27]} 37. Ke2 {[%emt 0:00:43] [#]} (37. Be4 $15) 37... Kf8 $19 {[%emt 0:01:20]} 38. Rc7 {[%emt 0:00:19]} Re6+ {[%emt 0:00:21]} 39. Kd2 {[%emt 0:00:29]} Re3 {[%emt 0:03:07]} 40. Bf1 {[%emt 0:00:38]} Rxg3 {[%emt 0:00:49]} 41. b4 {[%emt 0:01:37]} Ne6 {[%emt 0:06:58][%csl LRc7,LRf4]} 42. Rxb7 {[%emt 0:00:08]} Nxf4 {[%emt 0:00:06] Hoping for ...b5.} 43. Rxb6 {[%emt 0:02:12]} Rg1 {[%emt 0:04:23]} ({Stronger than} 43... Nxh3 44. Rxc6 Nf4 45. b5 $11) 44. Ke1 {[%emt 0:00:14]} Nxd3+ {[%emt 0:00:21]} 45. Ke2 {[%emt 0:01:27]} Ne5 {[%emt 0:00:44]} 46. Kf2 {[%emt 0:00:09]} Rg5 {[%emt 0:00:08] aiming for ...d3.} 47. Be2 {[%emt 0:09:25]} (47. a4 {keeps fighting.}) 47... d3 {[%emt 0:06:39]} 48. Bd1 {[%emt 0:00:11]} Rf5+ {[%emt 0:00:22]} 49. Ke1 {[%emt 0:00:06]} Nc4 {[%emt 0:00:52]} (49... Ke7 $19 {has better winning chances. And now ...Kd6 would win.} 50. a4 Rg5) 50. Rxc6 $17 {[%emt 0:00:46]} Re5+ {[%emt 0:00:06]} 51. Kf2 {[%emt 0:00:20]} Nb2 {[%emt 0:01:08] Black is more active.} 52. Bb3 {[%emt 0:09:52] [#]} Ke7 $1 {[%emt 0:01:02] ...d2 is the strong threat.} 53. Rc7+ {[%emt 0:06:54]} Kd6 {[%emt 0:10:02]} 54. Rxg7 {[%emt 0:03:23]} (54. Rc8 $17 {was necessary.}) 54... d2 $19 {[%emt 0:00:28]} 55. Rg1 {[%emt 0:00:36]} Re1 {[%emt 0:00:34] Strongly threatening ...Nd3+.} 56. Rg6 $2 {[%emt 0:00:38]} (56. Rg8 Nd3+ 57. Kf3 Ne5+ 58. Kf2) 56... Nd3+ {[%emt 0:00:13] Weighted Error Value: White=0.41/Black=0.07 (flawless)} 0-1

[Event "Czech Open-GM 2022"]
[Site "Pardubice"]
[Date "2022.07.27"]
[Round "6.30"]
[White "Stinka, Jakub"]
[Black "Jares, Michal"]
[Result "1/2-1/2"]
[ECO "E48"]
[WhiteElo "2335"]
[BlackElo "2208"]
[Annotator "TA"]
[PlyCount "36"]
[EventDate "2022.07.22"]
[EventType "swiss"]
[EventCountry "CZE"]
[SourceTitle "playchess.com"]
[Source "ChessBase"]
[SourceQuality "1"]
[TimeControl "40/5400+30:1800+30"]

{[%evp 15,36,1,0,0,5,-12,0,-25,0,0,0,0,0,0,0,-14,27,-8,33,-42,-44,-33,-34]} 1. d4 {[%emt 0:00:11]} Nf6 {[%emt 0:00:10]} 2. c4 {[%emt 0:00:12]} e6 {[%emt 0:00:02]} 3. Nc3 {[%emt 0:00:08]} Bb4 {[%emt 0:00:10]} 4. e3 {[%emt 0:00:07]} O-O {[%emt 0:00:33]} 5. Bd3 {[%emt 0:00:24]} d5 {[%emt 0:00:54]} 6. cxd5 {[%emt 0:00:14]} exd5 {[%emt 0:01:26]} 7. Nge2 {[%emt 0:00:13]} c6 {[%emt 0:07:07]} 8. O-O {[%emt 0:02:21]} Re8 {[%emt 0:12:47]} 9. Bd2 {[%emt 0:07:05] E48: Nimzo-Indian: Rubinstein: 5 Bd3 d5 including 6 Ne2, but excluding 6 a3.} Bd6 {[%emt 0:04:05]} 10. Ng3 {[%emt 0:08:50]} Ng4 {[%emt 0:16:41]} 11. Nce2 {[%emt 0:10:32] The position is equal.} h5 {[%emt 0:06:25][%cal Bh7h5,Bh5h4][%mdl 32] [#] Hoping for ...h4.} 12. Nf4 $146 {[%emt 0:11:10]} ({Predecessor:} 12. h3 h4 13. hxg4 hxg3 14. Nxg3 Qh4 15. Bf5 Nd7 16. Qe1 Nf6 17. f4 Nxg4 18. Bxg4 Bxg4 {½-½ (43) Mogstad,O (2445)-Limayo,E (2168) ICCF email 1997}) 12... h4 $1 {[%emt 0:04:30]} 13. Nf5 {[%emt 0:01:54]} Bxf5 {[%emt 0:00:36]} 14. Bxf5 {[%emt 0:00:04]} Nf6 {[%emt 0:00:32]} 15. Qf3 {[%emt 0:15:17]} Ne4 {[%emt 0:03:49]} 16. Rad1 {[%emt 0:13:03]} (16. Bxe4 $5 Rxe4 17. Nd3 $11) 16... Nd7 {[%emt 0:05:52]} 17. Nd3 {[%emt 0:07:32]} (17. Bxe4 $14 Rxe4 18. Qg4) 17... g6 {[%emt 0:02:59]} 18. Bxd7 {[%emt 0:01:02]} Qxd7 {[%emt 0:00:55] Weighted Error Value: White=0.23 (precise) /Black=0.11 (very precise)} 1/2-1/2